bitfinex/quotes_SOLUSD_20250902
["timestamp","ask_amount","ask_price","bid_price","bid_amount"]
[1756808822407,55.16587421,204.28,204.27,0.03]
[1756808825198,52.39991715,204.28,204.27,0.03]
[1756808825403,55.16587421,204.28,204.27,0.03]
[1756808827428,16.64587421,204.28,204.27,0.03]
[1756808827626,52.33991715,204.28,204.27,4.92548147]
[1756808828146,55.10587421,204.28,204.27,4.92548147]
[1756808828824,52.33991715,204.28,204.27,0.03]
[1756808829043,55.70587421,204.28,204.27,0.03]
[1756808829530,60.60111603,204.28,204.27,0.03]
[1756808829916,13.87991715,204.28,204.27,0.03]
[1756808830110,16.64587421,204.28,204.27,0.03]
[1756808830315,52.21775558,204.28,204.27,0.72]
[1756808830521,54.98371264,204.28,204.27,0.72]
[1756808831127,55.12587421,204.28,204.27,0.72]
[1756808831574,2.76595706,204.31,204.27,5.61548147]
[1756808831840,13.59559401,204.3,204.28,0.69]
[1756808832015,38.48,204.29,204.27,4.92548147]
[1756808832215,38.5,204.28,204.27,4.92548147]
[1756808832514,16.36155107,204.31,204.27,4.92548147]
[1756808832728,38.48,204.3,204.28,0.69]
[1756808833124,52.07559401,204.3,204.29,0.69]
[1756808833527,52.07559401,204.3,204.29,5.5850022]
[1756808833735,133.8,204.32,204.29,5.5850022]
[1756808833914,13.59559401,204.34,204.3,0.69]
[1756808834124,13.59559401,204.35,204.3,3.45595706]
[1756808834441,2.76595706,204.32,204.31,0.69]
[1756808834617,41.24595706,204.32,204.29,31.5850022]
[1756808834812,16.36155107,204.3,204.27,0.03]
[1756808835059,16.64587421,204.28,204.27,0.03]
[1756808835537,13.87991715,204.27,204.26,0.03]
[1756808835847,55.16587421,204.27,204.26,0.03]
[1756808836143,14.02207872,204.24,204.23,0.03]
[1756808836347,0.28432314,204.23,204.22,0.03]
[1756808836546,14.47991715,204.23,204.22,0.03]
[1756808837415,28.30970245,204.23,204.22,0.03]
[1756808837849,33.20614273,204.23,204.22,0.03]
[1756808838243,13.87991715,204.22,204.21,0.03]
[1756808838430,66.84970245,204.22,204.21,0.03]
[1756808838833,55.78587421,204.22,204.21,0.03]
[1756808839660,57.34618609,204.22,204.21,0.03]
[1756808840358,18.80618609,204.22,204.21,0.03]
[1756808840560,0.28432314,204.22,204.21,0.72]
[1756808840857,56.72618609,204.22,204.21,0.03]
[1756808841652,56.72618609,204.22,204.21,0.72]
[1756808842049,56.72618609,204.22,204.21,0.03]
[1756808843468,18.20618609,204.22,204.21,0.03]
[1756808843641,56.72618609,204.22,204.21,0.03]
[1756808844074,57.32618609,204.22,204.21,0.03]
[1756808845557,62.22286614,204.22,204.21,0.03]
[1756808845758,88.22286614,204.22,204.21,0.03]
[1756808848344,87.62286614,204.22,204.21,0.03]
[1756808848745,82.66618609,204.22,204.21,0.03]
[1756808849759,13.87991715,204.22,204.21,0.72]
[1756808850048,56.66618609,204.22,204.21,0.03]
[1756808850468,52.33991715,204.22,204.21,0.03]
[1756808850671,56.66618609,204.22,204.21,0.03]
[1756808851557,62.16286614,204.22,204.21,0.03]
[1756808852468,61.56286614,204.22,204.21,0.03]
[1756808852977,62.16286614,204.22,204.21,0.03]
[1756808853178,39.59559401,204.2,204.19,0.03]
[1756808853380,60.97245503,204.2,204.19,0.03]
[1756808853885,39.87991715,204.2,204.19,0.03]
[1756808854176,39.87991715,204.2,204.19,0.72]
[1756808854177,52.03559401,204.2,204.19,0.72]
[1756808854360,52.31991715,204.2,204.19,0.72]
[1756808854676,38.46,204.2,204.19,0.72]
[1756808855070,38.46,204.2,204.19,5.61739948]
[1756808855660,0.14216157,204.23,204.19,9.94366842]
[1756808855864,38.44,204.22,204.2,0.69]
[1756808856166,38.44,204.21,204.2,0.69]
[1756808857372,38.44,204.21,204.2,5.58715964]
[1756808858480,38.42,204.21,204.2,5.58715964]
[1756808859280,13.59559401,204.26,204.2,9.91342858]
[1756808859579,38.42,204.25,204.22,4.32626894]
[1756808859783,38.42,204.25,204.23,0.71]
[1756808860153,0.28432314,204.27,204.23,0.71]
[1756808860154,38.42,204.24,204.23,0.71]
[1756808860569,4.32626894,204.26,204.23,0.71]
[1756808860774,38.42,204.24,204.23,5.60644028]
[1756808862779,0.28432314,204.27,204.23,5.60644028]
[1756808863091,38.38,204.26,204.24,5.03626894]
[1756808863284,38.38,204.26,204.25,0.71]
[1756808863581,38.38,204.26,204.23,9.22270922]
[1756808863783,38.38,204.26,204.24,0.71]
[1756808863979,38.38,204.26,204.25,0.71]
[1756808864664,38.38,204.26,204.23,5.60644028]
[1756808864871,38.38,204.26,204.24,5.60606686]
[1756808865062,0.06,204.28,204.25,5.03626894]
[1756808865262,38.38,204.27,204.26,0.71]
[1756808866383,0.06,204.28,204.26,0.71]
[1756808866568,38.44,204.27,204.25,4.32626894]
[1756808866975,38.44,204.27,204.26,4.89572113]
[1756808867174,38.44,204.27,204.26,5.60572113]
[1756808867469,38.44,204.27,204.26,0.71]
[1756808867672,38.44,204.27,204.25,4.89591058]
[1756808867867,42.76626894,204.27,204.23,5.60621675]
[1756808868073,42.76626894,204.27,204.24,0.71]
[1756808868468,42.76626894,204.27,204.25,0.71]
[1756808869389,42.76626894,204.27,204.26,4.89572113]
[1756808869982,42.76626894,204.27,204.25,4.8958946]
[1756808870389,42.76626894,204.27,204.25,5.6058946]
[1756808870893,18.20618609,204.26,204.21,0.74]
[1756808871067,4.32626894,204.22,204.21,0.03]
[1756808871273,56.52618609,204.22,204.21,0.03]
[1756808871473,13.87991715,204.22,204.21,0.74]
[1756808871782,52.27991715,204.22,204.21,0.74]
[1756808872376,52.27991715,204.22,204.21,0.03]
[1756808872777,56.60618609,204.22,204.21,0.03]
[1756808873172,57.20618609,204.22,204.21,0.03]
[1756808875097,56.60618609,204.22,204.21,0.03]
[1756808875502,57.20618609,204.22,204.21,0.03]
[1756808875708,62.10286614,204.22,204.21,0.03]
[1756808875915,56.60618609,204.22,204.21,0.03]
[1756808876580,57.20618609,204.22,204.21,0.03]
[1756808879103,56.60618609,204.22,204.21,0.03]
[1756808879992,56.54618609,204.22,204.21,0.74]
[1756808880586,56.54618609,204.22,204.21,0.03]
[1756808880895,56.54618609,204.22,204.21,0.74]
[1756808882406,18.20618609,204.22,204.21,0.74]
[1756808882607,56.52618609,204.22,204.21,0.74]
[1756808883303,17.92186295,204.22,204.21,5.63691983]
[1756808883488,56.22186295,204.22,204.21,5.63691983]
[1756808883689,51.89559401,204.22,204.21,5.63691983]
[1756808883892,0.28432314,204.24,204.21,5.63691983]
[1756808884085,38.3,204.23,204.22,0.71]
[1756808884406,13.59559401,204.22,204.21,0.03]
[1756808884612,13.59559401,204.22,204.21,0.74]
[1756808885301,17.92186295,204.22,204.21,0.74]
[1756808885701,17.92186295,204.22,204.21,0.03]
[1756808887507,18.20618609,204.22,204.21,0.03]
[1756808888921,23.70286614,204.22,204.21,0.03]
[1756808889808,62.00286614,204.22,204.21,0.03]
[1756808890619,63.96600815,204.22,204.21,0.03]
[1756808891018,63.36600815,204.22,204.21,0.03]
[1756808891218,68.27227709,204.22,204.19,0.03]
[1756808891518,48.6746166,204.2,204.19,0.03]
[1756808891700,94.55883649,204.2,204.19,0.03]
[1756808891902,95.15883649,204.2,204.19,0.03]
[1756808892415,155.36629861,204.19,204.17,0.03]
[1756808892604,87.58598699,204.18,204.17,0.03]
[1756808892806,88.18598699,204.18,204.17,0.03]
[1756808893016,14.02207872,204.17,204.16,0.03]
[1756808893313,18.20618609,204.16,204.13,0.2]
[1756808893515,13.87991715,204.15,204.13,0.2]
[1756808893713,18.80618609,204.15,204.13,0.2]
[1756808894296,20.91255007,204.15,204.13,0.2]
[1756808895120,25.06874754,204.15,204.13,0.2]
[1756808895302,59.1024786,204.15,204.13,0.2]
[1756808895811,13.59559401,204.18,204.14,0.7]
[1756808896007,4.32626894,204.15,204.14,0.7]
[1756808896204,42.99059208,204.15,204.14,0.7]
[1756808896919,4.61059208,204.15,204.14,0.7]
[1756808897119,51.97559401,204.15,204.14,5.598599]
[1756808897310,38.38,204.15,204.14,5.598599]
[1756808898914,0.14216157,204.16,204.14,5.598599]
[1756808899124,13.59559401,204.2,204.15,4.99626894]
[1756808899411,38.36,204.19,204.16,0.67]
[1756808899613,41.12802506,204.19,204.17,0.67]
[1756808899819,41.12802506,204.19,204.14,4.928599]
[1756808899820,54.72361907,204.19,204.18,0.67]
[1756808900328,51.95559401,204.19,204.18,0.67]
[1756808903328,51.95559401,204.19,204.18,0.67]
[1756808904222,51.95559401,204.19,204.16,4.89811811]
[1756808904223,54.72361907,204.19,204.16,0.67]
[1756808904522,2.76802506,204.18,204.17,0.67]
[1756808904723,2.76802506,204.18,204.15,0.7]
[1756808904724,16.36361907,204.18,204.15,0.7]
[1756808904909,38.32,204.17,204.16,0.67]
[1756808905109,38.32,204.17,204.15,4.92833941]
[1756808905626,38.32,204.17,204.16,0.67]
[1756808905832,0.28432314,204.2,204.16,0.67]
[1756808906125,38.32,204.19,204.16,0.67]
[1756808907137,41.08802506,204.19,204.17,0.67]
[1756808907336,54.68361907,204.19,204.18,0.67]
[1756808908834,54.68361907,204.19,204.15,5.59835155]
[1756808909014,2.76802506,204.18,204.15,5.59835155]
[1756808909214,38.3,204.17,204.16,0.67]
[1756808909631,41.06802506,204.17,204.15,0.03]
[1756808909926,41.06802506,204.17,204.15,5.59831273]
[1756808910333,41.06802506,204.17,204.16,0.67]
[1756808911911,38.3,204.17,204.16,0.67]
[1756808912138,38.26,204.17,204.16,0.67]
[1756808912336,38.26,204.17,204.16,5.56811912]
[1756808913320,16.64794221,204.2,204.16,5.56811912]
[1756808913321,2.76802506,204.19,204.16,5.56811912]
[1756808913617,51.85559401,204.18,204.17,0.67]
[1756808913845,51.85559401,204.18,204.16,4.89811912]
[1756808914146,51.85559401,204.18,204.16,0.67]
[1756808914434,51.85559401,204.18,204.16,5.5680319]
[1756808914642,51.85559401,204.18,204.17,0.67]
[1756808915145,51.83559401,204.18,204.17,0.67]
[1756808915440,38.24,204.18,204.17,0.67]
[1756808916534,38.24,204.18,204.17,5.56787921]
[1756808917117,38.24,204.18,204.15,0.7]
[1756808917316,41.00802506,204.18,204.15,0.7]
[1756808918445,38.24,204.18,204.15,4.92829853]
[1756808918626,38.24,204.18,204.16,0.67]
[1756808919154,38.3,204.18,204.15,0.03]
[1756808919334,2.76802506,204.16,204.15,0.03]
[1756808919533,40.98802506,204.16,204.15,0.03]
[1756808920038,54.58361907,204.16,204.15,0.03]
[1756808920343,54.86794221,204.16,204.15,0.03]
[1756808920841,52.09991715,204.16,204.15,0.03]
[1756808921047,54.86794221,204.16,204.15,0.03]
[1756808923351,52.09991715,204.16,204.15,0.03]
[1756808923551,52.09991715,204.16,204.15,0.69]
[1756808923863,54.86794221,204.16,204.15,0.03]
[1756808925763,52.09991715,204.16,204.15,0.03]
[1756808925954,54.86794221,204.16,204.15,0.03]
[1756808927640,52.09991715,204.16,204.15,0.03]
[1756808927937,54.86794221,204.16,204.15,0.03]
[1756808928135,52.09991715,204.16,204.15,0.03]
[1756808928366,54.86794221,204.16,204.15,0.03]
[1756808930466,54.86794221,204.16,204.15,0.69]
[1756808930842,54.86794221,204.16,204.15,0.03]
[1756808931064,52.09991715,204.16,204.15,0.03]
[1756808931646,52.09991715,204.16,204.15,0.69]
[1756808932361,52.09991715,204.16,204.15,5.58830503]
[1756808932362,38.12,204.16,204.15,5.58830503]
[1756808933664,38.12,204.16,204.15,0.03]
[1756808934868,38.12,204.16,204.15,0.69]
[1756808935958,38.12,204.16,204.15,5.58835904]
[1756808936763,0.06,204.18,204.15,5.58835904]
[1756808936973,38.12,204.17,204.16,5.55811912]
[1756808937870,38.12,204.17,204.15,4.92829768]
[1756808938169,38.12,204.17,204.15,5.58829768]
[1756808938581,38.12,204.17,204.15,4.92829768]
[1756808938746,38.12,204.17,204.15,5.58829768]
[1756808939081,38.12,204.17,204.15,0.03]
[1756808939082,2.76802506,204.16,204.15,0.03]
[1756808939268,17.24794221,204.16,204.15,0.03]
[1756808939643,19.21156607,204.16,204.15,0.03]
[1756808939865,19.21156607,204.16,204.13,0.2]
[1756808939866,13.87991715,204.15,204.13,0.2]
[1756808940059,14.02207872,204.13,204.12,0.2]
[1756808940261,0.28432314,204.12,204.1,0.03]
[1756808940446,54.78794221,204.11,204.1,0.03]
[1756808940848,60.2872612,204.11,204.1,0.03]
[1756808941046,71.35936144,204.11,204.1,0.03]
[1756808941773,13.87991715,204.1,204.06,0.2]
[1756808941948,16.64794221,204.07,204.06,0.2]
[1756808942153,54.78794221,204.07,204.06,0.2]
[1756808942473,55.38794221,204.07,204.06,0.2]
[1756808942843,60.28822152,204.07,204.06,0.2]
[1756808943073,65.18998221,204.07,204.06,0.2]
[1756808943655,60.2897029,204.07,204.06,0.2]
[1756808944064,65.18998221,204.07,204.06,0.2]
[1756808944465,18.78167784,204.07,204.06,0.2]
[1756808944677,56.92167784,204.07,204.06,0.2]
[1756808944878,59.6897029,204.07,204.06,0.2]
[1756808945179,54.78794221,204.07,204.06,0.2]
[1756808947077,60.28822152,204.07,204.06,0.2]
[1756808947459,55.38794221,204.07,204.06,0.2]
[1756808948073,60.28822152,204.07,204.06,0.2]
[1756808948580,54.78794221,204.07,204.06,0.2]
[1756808949276,52.01991715,204.07,204.06,0.2]
[1756808949477,59.68822152,204.07,204.06,0.2]
[1756808949677,56.92019646,204.07,204.06,0.2]
[1756808949875,64.58994202,204.07,204.06,0.2]
[1756808950577,67.15234912,204.07,204.06,0.2]
[1756808951964,67.75234912,204.07,204.06,0.2]
[1756808952355,67.15234912,204.07,204.06,0.2]
[1756808953161,62.25206981,204.07,204.06,0.2]
[1756808954687,67.15234912,204.07,204.06,0.2]
[1756808956059,67.75234912,204.07,204.06,0.2]
[1756808956275,67.89451069,204.07,204.06,0.2]
[1756808956480,75.43873058,204.07,203.98,0.68]
[1756808956792,16.64794221,203.99,203.98,0.68]
[1756808956991,54.76794221,203.99,203.98,0.68]
[1756808958194,51.99991715,203.99,203.98,0.68]
[1756808958394,54.76794221,203.99,203.98,0.68]
[1756808958695,51.99991715,203.99,203.98,0.68]
[1756808958899,54.76794221,203.99,203.98,0.68]
[1756808959269,51.99991715,203.99,203.98,0.68]
[1756808959682,13.87991715,203.98,203.95,0.68]
[1756808959867,38.14,203.97,203.96,0.68]
[1756808962699,38.14,203.97,203.96,5.58292214]
[1756808963916,38.14,203.97,203.96,0.68]
[1756808964123,38.14,203.97,203.96,5.58292214]
[1756808964295,13.59559401,203.93,203.92,0.68]
[1756808964499,0.72149006,203.94,203.9,4.33418391]
[1756808964724,38.22,203.93,203.91,4.33418391]
[1756808965048,38.22,203.93,203.92,5.58388387]
[1756808965213,38.22,203.93,203.92,4.90388387]
[1756808965415,38.22,203.93,203.92,5.58388387]
[1756808965931,38.22,203.93,203.92,9.91806778]
[1756808966838,38.22,203.93,203.92,5.58388387]
[1756808968829,38.22,203.93,203.92,0.68]
[1756808969329,38.22,203.93,203.92,5.58388387]
[1756808970837,38.2,203.93,203.92,5.58388387]
[1756808973338,148.54092819,203.99,203.92,9.91806778]
[1756808973507,13.59559401,203.97,203.93,0.68]
[1756808973709,42.53418391,203.96,203.93,0.68]
[1756808973897,42.53418391,203.96,203.92,5.58388387]
[1756808973898,4.33418391,203.95,203.92,5.58388387]
[1756808974103,38.2,203.94,203.92,5.58388387]
[1756808974340,38.2,203.94,203.93,0.68]
[1756808974509,0.28432314,203.96,203.93,0.68]
[1756808974698,38.2,203.95,203.92,4.90388387]
[1756808974909,38.2,203.95,203.93,0.68]
[1756808975628,38.2,203.95,203.94,4.90340296]
[1756808976404,38.2,203.95,203.94,5.58340296]
[1756808978816,38.16,203.95,203.94,5.58340296]
[1756808979043,38.16,203.95,203.94,4.90340296]
[1756808979619,38.16,203.95,203.94,0.72]
[1756808980552,38.16,203.95,203.92,4.90388387]
[1756808980732,38.16,203.95,203.93,0.72]
[1756808981248,0.28432314,203.97,203.93,0.72]
[1756808981427,38.14,203.96,203.93,0.72]
[1756808982038,38.14,203.96,203.91,12.25992218]
[1756808982039,38.14,203.96,203.92,4.33418391]
[1756808982228,38.14,203.96,203.94,0.72]
[1756808982855,38.14,203.96,203.95,4.90316253]
[1756808983056,38.14,203.96,203.95,5.62316253]
[1756808984758,38.14,203.96,203.93,5.6236434]
[1756808984958,38.14,203.96,203.94,0.72]
[1756808985844,38.14,203.96,203.93,4.9036434]
[1756808986053,4.33418391,203.94,203.92,0.03]
[1756808986251,38.14,203.93,203.92,0.03]
[1756808986839,38.14,203.93,203.92,5.65387607]
[1756808988954,38.14,203.93,203.92,9.98805998]
[1756808990166,38.14,203.93,203.92,5.65387607]
[1756808990367,38.14,203.93,203.92,9.98805998]
[1756808993874,38.14,203.94,203.92,22.24776967]
[1756808994063,38.14,203.94,203.93,5.05418391]
[1756808995675,38.14,203.94,203.93,9.95782731]
[1756808995972,133.8,203.99,203.93,22.21693582]
[1756808996195,38.14,203.98,203.96,4.33418391]
[1756808996479,14.47991715,204.01,203.94,0.72]
[1756808996480,38.14,203.97,203.94,4.33418391]
[1756808996648,38.14,203.97,203.94,5.05418391]
[1756808997644,38.14,203.97,203.95,4.90316253]
[1756808998054,38.14,203.97,203.95,9.23734644]
[1756808998258,38.14,203.97,203.95,5.62316253]
[1756808999383,38.14,203.97,203.95,9.23734644]
[1756808999556,0.88432314,203.99,203.95,9.23734644]
[1756808999759,38.14,203.98,203.95,9.23734644]
[1756808999967,38.14,203.98,203.95,4.90316253]
[1756809000280,4.33418391,203.97,203.94,4.90316544]
[1756809000480,4.93418391,203.96,203.94,4.90316544]
[1756809000683,38.14,203.95,203.94,4.90316544]
[1756809001287,4.90316544,204.0,203.96,4.90292214]
[1756809001462,4.90316544,204.0,203.97,0.72]
[1756809001463,38.14,203.99,203.97,0.72]
[1756809001861,38.14,203.99,203.98,4.33418391]
[1756809002059,38.14,203.99,203.96,4.90292214]
[1756809002280,38.14,203.99,203.96,5.62292214]
[1756809002866,38.74,203.99,203.96,4.90292214]
[1756809003182,4.33418391,203.97,203.94,0.03]
[1756809003382,42.47418391,203.96,203.94,0.03]
[1756809003572,43.07418391,203.96,203.94,0.03]
[1756809004079,38.14,203.96,203.94,0.75]
[1756809004464,38.14,203.96,203.94,0.03]
[1756809004465,38.74,203.96,203.94,0.03]
[1756809004664,42.47418391,203.96,203.94,0.03]
[1756809004868,38.14,203.96,203.94,0.03]
[1756809005086,0.6,203.95,203.94,0.03]
[1756809005285,42.47418391,203.96,203.94,0.03]
[1756809005584,43.07418391,203.96,203.94,0.03]
[1756809005960,38.14,203.96,203.94,0.03]
[1756809006161,38.14,203.95,203.94,0.03]
[1756809006363,0.14216157,204.0,203.95,0.72]
[1756809006587,38.14,203.99,203.97,4.33418391]
[1756809006797,9.26806778,204.04,203.98,5.05418391]
[1756809007082,13.65559401,204.06,203.99,0.72]
[1756809007260,17.92977792,204.04,204.0,4.90196078]
[1756809007456,18.52977792,204.04,204.0,4.90196078]
[1756809007686,18.52977792,204.04,204.0,9.23614469]
[1756809007687,13.59559401,204.04,204.0,9.23614469]
[1756809007884,13.59559401,204.04,204.0,9.95614469]
[1756809008088,13.59559401,204.04,204.01,4.33418391]
[1756809008290,13.59559401,204.04,204.01,5.05418391]
[1756809008591,4.53634548,204.06,204.03,4.33418391]
[1756809008592,0.06,204.06,204.03,4.33418391]
[1756809008810,0.06,204.06,204.02,0.72]
[1756809008811,38.14,204.05,204.04,5.05418391]
[1756809008986,38.14,204.05,204.03,4.33418391]
[1756809009188,42.47418391,204.05,204.0,9.23614469]
[1756809009394,18.21410106,204.02,203.98,4.9022266]
[1756809009588,13.87991715,204.0,203.95,4.90316253]
[1756809009790,4.33418391,203.97,203.95,4.90316253]
[1756809009994,38.14,203.96,203.95,4.90316253]
[1756809010582,38.14,203.96,203.94,17.19185834]
[1756809010808,38.14,203.96,203.94,5.61340296]
[1756809010979,42.47418391,203.96,203.94,4.93340296]
[1756809011174,4.33418391,203.95,203.94,0.03]
[1756809011374,38.14,203.96,203.94,0.03]
[1756809011579,4.33418391,203.95,203.94,0.03]
[1756809012586,42.47418391,203.96,203.94,0.03]
[1756809013624,13.59559401,203.98,203.94,0.03]
[1756809013807,0.6,203.99,203.94,0.03]
[1756809013808,13.73775558,203.99,203.95,0.68]
[1756809014006,38.14,203.98,203.94,4.36418391]
[1756809014210,38.14,203.98,203.95,0.68]
[1756809014407,38.14,203.98,203.94,4.36418391]
[1756809014604,38.14,203.98,203.94,5.04418391]
[1756809015122,42.47418391,203.98,203.95,4.90316253]
[1756809015324,4.33418391,203.96,203.95,4.90316253]
[1756809015617,4.93418391,203.96,203.94,0.03]
[1756809015809,38.14,203.95,203.94,0.03]
[1756809016015,38.14,203.95,203.94,4.93340296]
[1756809016919,38.14,203.95,203.94,0.03]
[1756809018226,43.07418391,203.95,203.94,0.03]
[1756809018597,42.47418391,203.95,203.94,0.03]
[1756809021302,38.14,203.95,203.94,0.03]
[1756809021600,2.77451257,203.96,203.94,0.03]
[1756809021799,38.14,203.95,203.94,0.03]
[1756809022816,40.91451257,203.95,203.94,0.03]
[1756809023016,54.79442972,203.95,203.94,0.03]
[1756809023221,55.39442972,203.95,203.94,0.03]
[1756809024339,60.29759225,203.95,203.94,0.03]
[1756809024628,62.26353233,203.95,203.94,0.03]
[1756809025526,57.3603698,203.95,203.94,0.03]
[1756809026325,62.26353233,203.95,203.94,0.03]
[1756809026745,24.12353233,203.95,203.94,0.03]
[1756809026938,62.26353233,203.95,203.94,0.03]
[1756809028743,62.4056939,203.95,203.92,0.03]
[1756809028922,42.79659129,203.93,203.92,0.03]
[1756809029256,80.93659129,203.93,203.92,0.03]
[1756809029636,83.50291794,203.93,203.92,0.03]
[1756809030456,14.02207872,203.92,203.91,0.03]
[1756809030749,27.89464157,203.92,203.91,0.03]
[1756809030952,33.39852544,203.92,203.91,0.03]
[1756809032843,60.44047516,203.92,203.91,0.03]
[1756809033032,16.65442972,203.92,203.91,0.03]
[1756809033231,54.79442972,203.92,203.91,0.03]
[1756809033426,61.66464024,203.92,203.91,0.03]
[1756809034124,58.89012767,203.92,203.91,0.03]
[1756809034453,61.66464024,203.92,203.91,0.03]
[1756809034630,62.26464024,203.92,203.91,0.03]
[1756809035827,15.8462438,203.92,203.91,0.03]
[1756809036031,15.56192066,203.92,203.91,0.71]
[1756809036249,13.59559401,203.97,203.91,0.71]
[1756809036456,13.59559401,203.92,203.91,0.71]
[1756809036758,51.73559401,203.92,203.91,5.61412436]
[1756809036929,52.03991715,203.92,203.91,0.03]
[1756809037130,4.90472403,203.95,203.91,8.38863693]
[1756809037359,38.16,203.94,203.92,3.45451257]
[1756809037530,2.77451257,203.99,203.93,3.45451257]
[1756809037731,40.93451257,203.98,203.94,0.68]
[1756809038042,0.28432314,203.96,203.94,0.68]
[1756809038256,38.16,203.95,203.94,0.68]
[1756809038675,0.28432314,203.96,203.94,5.58340296]
[1756809038982,2.77451257,203.99,203.94,7.67791553]
[1756809039180,51.73559401,203.98,203.94,7.67791553]
[1756809039477,51.73559401,203.98,203.95,0.67]
[1756809039654,0.28432314,203.97,203.95,0.67]
[1756809039952,38.14,203.96,203.95,0.67]
[1756809040667,38.14,203.96,203.95,5.57316253]
[1756809042456,0.28432314,203.97,203.95,5.57316253]
[1756809042660,0.28432314,203.97,203.96,0.67]
[1756809042855,52.01991715,203.97,203.96,0.67]
[1756809043059,133.8,204.05,203.96,3.44451257]
[1756809043254,133.8,204.05,203.99,2.77451257]
[1756809043255,51.73559401,204.04,203.99,2.77451257]
[1756809043454,38.14,204.03,204.01,2.77451257]
[1756809043671,38.14,204.03,204.02,0.67]
[1756809044474,0.06,204.06,204.03,4.90124001]
[1756809044674,38.14,204.05,204.04,3.44451257]
[1756809044969,38.14,204.05,204.04,0.67]
[1756809045777,0.06,204.06,204.04,3.44451257]
[1756809045979,0.06,204.06,204.05,2.77451257]
[1756809046153,38.2,204.06,204.05,3.44451257]
[1756809046676,38.2,204.06,204.05,8.34527218]
[1756809047672,38.2,204.06,204.05,5.57075961]
[1756809047852,38.2,204.06,204.05,8.34527218]
[1756809048755,0.06,204.06,204.05,8.34527218]
[1756809048958,38.2,204.06,204.05,0.67]
[1756809049458,38.2,204.06,204.02,3.44451257]
[1756809049671,40.97451257,204.06,204.0,2.77451257]
[1756809049977,40.97451257,204.06,204.02,0.67]
[1756809050173,2.77451257,204.05,204.02,0.67]
[1756809050480,38.14,204.04,204.02,0.67]
[1756809050859,38.14,204.04,204.02,5.57138231]
[1756809051063,38.14,204.04,204.02,4.90138231]
[1756809051461,13.87991715,204.03,204.0,5.57178548]
[1756809051771,38.14,204.02,204.0,5.57178548]
[1756809052666,13.93991715,204.06,204.01,3.44451257]
[1756809052868,38.12,204.05,204.02,3.44451257]
[1756809053175,38.12,204.05,204.03,5.57124001]
[1756809054671,13.87991715,204.04,204.0,0.67]
[1756809054877,38.12,204.03,204.0,0.67]
[1756809055376,38.12,204.03,204.0,4.90196078]
[1756809055684,38.12,204.03,204.01,0.67]
[1756809056185,38.12,204.03,204.01,3.44451257]
[1756809056391,38.12,204.03,204.02,0.67]
[1756809056555,38.12,204.03,204.02,8.34599281]
[1756809058459,38.12,204.03,204.02,5.57148024]
[1756809058680,38.12,204.03,204.02,8.34599281]
[1756809060378,38.12,204.03,204.02,20.59969342]
[1756809061269,38.12,204.03,204.02,8.34599281]
[1756809063993,0.06,204.06,204.02,8.34599281]
[1756809064176,0.06,204.06,204.05,2.77451257]
[1756809064479,38.18,204.06,204.05,2.77451257]
[1756809065388,0.28432314,204.04,204.0,4.90196078]
[1756809065592,41.55451257,204.06,204.0,4.90196078]
[1756809065593,13.87991715,204.02,204.0,4.90196078]
[1756809065777,51.99991715,204.01,204.0,4.90196078]
[1756809066172,13.59559401,204.0,203.99,4.90220108]
[1756809066875,13.59559401,204.0,203.97,0.67]